bitfinex/quotes_BTCUSD_20251205
["timestamp","ask_amount","ask_price","bid_price","bid_amount"]
[1764903901921,0.01623333,92597.0,92596.0,0.01723333]
[1764903902344,0.01623333,92597.0,92596.0,0.001]
[1764903902761,1.78789733,92597.0,92596.0,0.001]
[1764903902907,1.82134239,92597.0,92596.0,0.001]
[1764903903324,1.85041745,92597.0,92596.0,0.001]
[1764903903549,1.82134239,92597.0,92596.0,0.001]
[1764903903695,1.85378181,92597.0,92596.0,0.001]
[1764903904860,1.635333,92589.0,92586.0,0.01080076]
[1764903904999,1.590642,92587.0,92585.0,0.01080088]
[1764903906139,1.590642,92587.0,92585.0,0.01280088]
[1764903906846,1.177642,92587.0,92585.0,0.22881818]
[1764903907028,0.947785,92587.0,92585.0,0.22881818]
[1764903909584,0.190344,92587.0,92585.0,0.22881818]
[1764903916907,0.190344,92587.0,92586.0,0.04320153]
[1764903917749,0.190344,92587.0,92586.0,0.02160153]
[1764903918432,0.190344,92587.0,92586.0,0.02360153]
[1764903922434,0.01704,92588.0,92587.0,0.21601304]
[1764903922924,0.120162,92588.0,92587.0,0.21601304]
[1764903923376,0.120162,92588.0,92587.0,0.23305304]
[1764903923979,0.120162,92588.0,92587.0,0.23505304]
[1764903924824,0.120162,92588.0,92587.0,0.27276304]
[1764903925037,0.120162,92588.0,92587.0,0.29612304]
[1764903925186,0.120162,92588.0,92587.0,0.27276304]
[1764903925931,0.120162,92588.0,92587.0,0.25665304]
[1764903929143,0.120162,92588.0,92587.0,0.23505304]
[1764903933790,0.136732,92588.0,92587.0,0.23505304]
[1764903933998,0.160662,92588.0,92587.0,0.23505304]
[1764903937853,0.120162,92588.0,92587.0,0.23505304]
[1764903938095,0.160982,92588.0,92587.0,0.23505304]
[1764903938298,0.136652,92588.0,92587.0,0.23505304]
[1764903938858,0.120162,92588.0,92587.0,0.23505304]
[1764903941648,0.01623333,92597.0,92596.0,0.21599205]
[1764903941799,0.48415119,92597.0,92596.0,0.21599205]
[1764903942223,0.50743229,92597.0,92596.0,0.21599205]
[1764903943007,0.06668029,92597.0,92596.0,0.21599205]
[1764903943217,0.01623333,92597.0,92596.0,0.27684205]
[1764903943427,0.01623333,92597.0,92596.0,0.30927449]
[1764903943872,0.01623333,92597.0,92596.0,0.28628449]
[1764903944922,0.01623333,92597.0,92596.0,0.26468449]
[1764903945642,0.01623333,92597.0,92596.0,0.26668449]
[1764903946459,0.01704,92599.0,92596.0,0.27748409]
[1764903946827,0.144927,92607.0,92606.0,0.23756872]
[1764903947037,0.161967,92607.0,92606.0,0.23756872]
[1764903947211,0.161967,92607.0,92606.0,0.21596872]
[1764903947414,0.01704,92607.0,92606.0,0.22629872]
[1764903947565,0.137088,92607.0,92606.0,0.25873116]
[1764903947970,0.117385,92607.0,92606.0,0.25873116]
[1764903948959,0.01704,92607.0,92606.0,0.29919116]
[1764903949169,0.01804,92607.0,92606.0,0.29919116]
[1764903949413,0.01904,92607.0,92606.0,0.29919116]
[1764903949620,0.01904,92607.0,92606.0,0.26675872]
[1764903950384,0.01804,92607.0,92606.0,0.26675872]
[1764903950628,0.01804,92607.0,92606.0,0.22629872]
[1764903950822,0.329114,92607.0,92606.0,0.21596872]
[1764903951203,0.367184,92607.0,92606.0,0.21596872]
[1764903951396,0.328114,92607.0,92606.0,0.21596872]
[1764903951595,0.328114,92607.0,92606.0,0.21796872]
[1764903951833,0.328114,92607.0,92606.0,0.21596872]
[1764903952262,0.329114,92607.0,92606.0,0.21596872]
[1764903952446,0.330114,92607.0,92606.0,0.21596872]
[1764903957959,0.330114,92607.0,92606.0,0.22629872]
[1764903958363,0.330114,92607.0,92606.0,0.24789872]
[1764903958663,0.329114,92607.0,92606.0,0.24789872]
[1764903958890,0.328114,92607.0,92606.0,0.24789872]
[1764903959263,0.311074,92607.0,92606.0,0.26775872]
[1764903959470,0.545755,92619.0,92618.0,0.01079703]
[1764903959676,0.562795,92619.0,92616.0,0.01079727]
[1764903959881,1.064171,92617.0,92616.0,0.22674259]
[1764903960062,0.953621,92617.0,92616.0,0.22674259]
[1764903960402,0.900947,92617.0,92616.0,0.22674259]
[1764903961099,0.884756,92617.0,92616.0,0.22674259]
[1764903961993,0.885756,92617.0,92616.0,0.22674259]
[1764903962187,0.886756,92617.0,92616.0,0.22674259]
[1764903962723,0.788918,92617.0,92616.0,0.22674259]
[1764903962896,0.776718,92617.0,92616.0,0.22674259]
[1764903964632,0.799498,92617.0,92616.0,0.22674259]
[1764903965910,0.799498,92617.0,92616.0,0.01079727]
[1764903966536,1.003053,92616.0,92615.0,0.01079738]
[1764903966741,1.042123,92616.0,92615.0,0.01079738]
[1764903967633,1.042123,92616.0,92613.0,0.2267498]
[1764903967803,1.14680733,92614.0,92613.0,0.2267498]
[1764903968016,1.14680733,92614.0,92611.0,0.03242827]
[1764903968017,1.581424,92613.0,92611.0,0.03242827]
[1764903968196,0.950204,92611.0,92610.0,0.01079796]
[1764903968398,0.989754,92611.0,92610.0,0.01079796]
[1764903969345,0.975418,92611.0,92610.0,0.01079796]
[1764903973573,0.914218,92611.0,92610.0,0.01079796]
[1764903973992,0.762476,92613.0,92611.0,0.21595706]
[1764903975241,0.614968,92613.0,92611.0,0.21595706]
[1764903975944,0.416052,92613.0,92611.0,0.21595706]
[1764903979368,0.301118,92619.0,92618.0,0.21594074]
[1764903979572,0.82273,92619.0,92618.0,0.21594074]
[1764903979770,0.87416,92619.0,92618.0,0.21594074]
[1764903980751,0.87516,92619.0,92618.0,0.21594074]
[1764903980983,0.62066,92619.0,92618.0,0.21594074]
[1764903981204,0.61866,92619.0,92618.0,0.21594074]
[1764903981644,0.61966,92619.0,92618.0,0.21594074]
[1764903982718,0.559178,92619.0,92618.0,0.21594074]
[1764903982923,0.516378,92619.0,92618.0,0.21594074]
[1764903983130,0.307508,92619.0,92618.0,0.23754074]
[1764903984051,0.295942,92619.0,92618.0,0.23754074]
[1764903984589,0.01904,92619.0,92618.0,0.21594074]
[1764903985249,0.122594,92619.0,92618.0,0.21594074]
[1764903985621,0.01904,92619.0,92618.0,0.21594074]
[1764903985945,0.152184,92619.0,92618.0,0.21594074]
[1764903991738,0.167944,92619.0,92618.0,0.21594074]
[1764903991940,0.191734,92619.0,92618.0,0.21594074]
[1764903996748,0.167944,92619.0,92618.0,0.21594074]
[1764903997124,0.192114,92619.0,92618.0,0.21594074]
[1764903998488,0.167944,92619.0,92618.0,0.21594074]
[1764904002327,0.152184,92619.0,92618.0,0.21594074]
[1764904007239,0.152184,92619.0,92618.0,0.23754074]
[1764904007650,0.152184,92619.0,92618.0,0.21594074]
[1764904014289,0.01904,92619.0,92618.0,0.21594074]
[1764904014491,0.002,92619.0,92618.0,0.25491074]
[1764904014669,0.002,92619.0,92618.0,0.2873361]
[1764904015050,0.002,92619.0,92618.0,0.2635561]
[1764904015246,0.28704,92619.0,92618.0,0.2483661]
[1764904016939,0.32789,92619.0,92618.0,0.2483661]
[1764904019102,0.28704,92619.0,92618.0,0.2483661]
[1764904020045,0.28604,92619.0,92618.0,0.2483661]
[1764904020673,0.28504,92619.0,92618.0,0.2483661]
[1764904020896,0.82597,92622.0,92621.0,0.21593375]
[1764904021023,0.84316899,92622.0,92621.0,0.21593375]
[1764904021247,0.85966899,92622.0,92621.0,0.21593375]
[1764904027675,0.85966899,92622.0,92621.0,0.19147375]
[1764904028738,0.323,92621.0,92619.0,0.04322116]
[1764904028996,0.323,92621.0,92608.0,0.21596227]
[1764904028997,1.58828892,92619.0,92608.0,0.21596227]
[1764904029203,0.04267333,92614.0,92608.0,0.21596227]
[1764904029411,0.05971333,92614.0,92610.0,0.01079796]
[1764904029583,0.08340333,92614.0,92612.0,0.24838092]
[1764904030135,0.08340333,92614.0,92613.0,0.01179762]
[1764904030590,0.08340333,92614.0,92613.0,0.01079762]
[1764904055857,0.08340333,92614.0,92611.0,0.01079785]
[1764904056060,0.02644,92612.0,92611.0,0.22675403]
[1764904056465,0.05013,92612.0,92611.0,0.22675403]
[1764904067381,0.02644,92612.0,92611.0,0.22675403]
[1764904067581,0.04469333,92614.0,92613.0,0.2159524]
[1764904067951,0.06737333,92614.0,92613.0,0.2159524]
[1764904068764,0.04469333,92614.0,92613.0,0.2159524]
[1764904068991,0.04469333,92614.0,92613.0,0.2169524]
[1764904075379,0.03327333,92614.0,92613.0,0.2576724]
[1764904075557,0.03327333,92614.0,92613.0,0.31169762]
[1764904075762,0.03327333,92614.0,92613.0,0.28697762]
[1764904075957,0.03327333,92614.0,92613.0,0.26537762]
[1764904076368,0.03327333,92614.0,92613.0,0.27097762]
[1764904085395,0.03327333,92614.0,92613.0,0.24937762]
[1764904086278,0.03327333,92614.0,92613.0,0.27097762]
[1764904086634,0.03327333,92614.0,92613.0,0.24937762]
[1764904087472,0.03327333,92614.0,92613.0,0.27097762]
[1764904095496,0.34632387,92627.0,92626.0,0.21592209]
[1764904095695,0.6325621,92627.0,92626.0,0.21592209]
[1764904095977,0.6496021,92627.0,92626.0,0.21592209]
[1764904096180,0.3734871,92627.0,92626.0,0.21592209]
[1764904096586,0.3744871,92627.0,92626.0,0.21592209]
[1764904096758,0.5313511,92627.0,92626.0,0.21592209]
[1764904096982,0.5432301,92627.0,92626.0,0.21592209]
[1764904097135,0.5421221,92627.0,92626.0,0.21592209]
[1764904097348,0.3774871,92627.0,92626.0,0.21592209]
[1764904098465,0.34404,92627.0,92626.0,0.21592209]
[1764904098668,0.34404,92627.0,92626.0,0.27812209]
[1764904098669,0.004,92627.0,92626.0,0.27812209]
[1764904098924,0.004,92627.0,92626.0,0.31054455]
[1764904099316,0.003,92627.0,92626.0,0.31054455]
[1764904099662,0.001,92627.0,92626.0,0.31054455]
[1764904100095,0.004,92627.0,92626.0,0.31054455]
[1764904100314,0.01704,92632.0,92626.0,0.31054455]
[1764904100315,0.01704,92632.0,92631.0,0.21591044]
[1764904100520,0.01704,92632.0,92631.0,0.25347044]
[1764904100830,0.01704,92632.0,92631.0,0.23187044]
[1764904101040,0.01704,92632.0,92631.0,0.24891044]
[1764904101239,0.01704,92632.0,92631.0,0.29515044]
[1764904102425,0.00185982,92633.0,92632.0,0.0216]
[1764904102623,0.00185982,92633.0,92632.0,0.0622]
[1764904103582,0.00285982,92633.0,92632.0,0.0622]
[1764904104307,0.00385982,92633.0,92632.0,0.0406]
[1764904104486,0.00385982,92633.0,92632.0,0.0622]
[1764904105247,0.00285982,92633.0,92632.0,0.0622]
[1764904105444,0.00185982,92633.0,92632.0,0.0622]
[1764904105968,0.00185982,92633.0,92632.0,0.08379081]
[1764904106754,0.00185982,92633.0,92632.0,0.08479081]
[1764904108028,0.00185982,92633.0,92632.0,0.08379081]
[1764904108388,0.00185982,92633.0,92632.0,0.08879081]
[1764904110586,0.00185982,92633.0,92632.0,0.12120643]
[1764904112592,0.00185982,92633.0,92632.0,0.09960643]
[1764904112835,0.00185982,92633.0,92632.0,0.12120643]
[1764904116380,0.0002,92650.0,92649.0,0.23746849]
[1764904116521,0.0002,92650.0,92649.0,0.28839849]
[1764904116927,0.0002,92650.0,92649.0,0.32080967]
[1764904117946,0.0002,92650.0,92649.0,0.30020967]
[1764904118212,0.0002,92650.0,92649.0,0.32180967]
[1764904118382,0.0002,92650.0,92649.0,0.38433266]
[1764904119320,0.0002,92650.0,92649.0,0.32080967]
[1764904119674,0.0002,92650.0,92649.0,0.29816967]
[1764904120222,0.0002,92650.0,92649.0,0.32234967]
[1764904120835,0.0002,92650.0,92649.0,0.26060967]
[1764904121073,0.0002,92650.0,92649.0,0.28220967]
[1764904122021,0.00068761,92650.0,92649.0,0.28220967]
[1764904122370,0.04108761,92650.0,92649.0,0.25027967]
[1764904122701,0.01686761,92650.0,92649.0,0.25027967]
[1764904122913,0.01686761,92650.0,92649.0,0.21786849]
[1764904123518,0.01686761,92650.0,92649.0,0.21586849]
[1764904123718,0.01886761,92650.0,92649.0,0.21586849]
[1764904124361,0.00268761,92650.0,92649.0,0.21586849]
[1764904125439,0.00268761,92650.0,92649.0,0.25537849]
[1764904125651,0.00268761,92650.0,92649.0,0.27697849]
[1764904125995,0.00268761,92650.0,92649.0,0.25537849]
[1764904126336,0.00268761,92650.0,92649.0,0.27697849]
[1764904126538,0.00068761,92650.0,92649.0,0.27697849]
[1764904126956,0.00168761,92650.0,92649.0,0.27697849]
[1764904127357,0.00168761,92650.0,92649.0,0.23746849]
[1764904127818,0.00168761,92650.0,92649.0,0.25315849]
[1764904128175,0.00168761,92650.0,92649.0,0.27697849]
[1764904130430,0.00168761,92650.0,92649.0,0.29401849]
[1764904131906,0.00168761,92650.0,92649.0,0.27697849]
[1764904137810,0.00168761,92650.0,92649.0,0.25315849]
[1764904138507,0.00168761,92650.0,92649.0,0.21586849]
[1764904142490,0.00168761,92650.0,92649.0,0.27697849]
[1764904142686,0.00168761,92650.0,92649.0,0.25537849]
[1764904142898,0.00168761,92650.0,92649.0,0.27697849]
[1764904144194,0.00168761,92650.0,92649.0,0.30938588]
[1764904144639,0.00068761,92650.0,92649.0,0.30938588]
[1764904145020,0.00068761,92650.0,92649.0,0.31038588]
[1764904145442,0.00068761,92650.0,92649.0,0.31138588]
[1764904147014,0.00068761,92650.0,92649.0,0.37390887]
[1764904154120,0.00068761,92650.0,92649.0,0.31138588]
[1764904154930,0.0002,92660.0,92659.0,0.23744519]
[1764904155134,0.0002,92660.0,92659.0,0.26423519]
[1764904155354,0.0002,92660.0,92659.0,0.28800519]
[1764904155798,0.0002,92660.0,92659.0,0.26640519]
[1764904156003,0.0002,92660.0,92659.0,0.28800519]
[1764904157149,0.0012,92660.0,92659.0,0.28800519]
[1764904157369,0.0002,92660.0,92659.0,0.28800519]
[1764904157824,0.0012,92660.0,92659.0,0.30500519]
[1764904160663,0.00148677,92660.0,92659.0,0.30500519]
[1764904164935,0.00148677,92660.0,92659.0,0.31634519]
[1764904170592,0.00148677,92660.0,92659.0,0.37886818]
[1764904170807,0.0002,92680.0,92659.0,0.37886818]
[1764904170808,0.0002,92680.0,92679.0,0.23739861]
[1764904171058,0.0002,92680.0,92679.0,0.25385861]
[1764904171361,0.0002,92680.0,92679.0,0.27762861]
[1764904171782,0.0002,92680.0,92679.0,0.23739861]
[1764904172013,0.0002,92680.0,92679.0,0.21579861]
[1764904172940,0.0012,92680.0,92679.0,0.21579861]
[1764904176019,0.0418,92680.0,92679.0,0.21579861]
[1764904176344,0.04237339,92680.0,92679.0,0.21579861]
[1764904177038,0.04237339,92680.0,92674.0,0.01079051]
[1764904177039,0.01078993,92679.0,92674.0,0.01079051]
[1764904177182,0.535614,92678.0,92675.0,0.22659736]
[1764904177535,0.535614,92678.0,92675.0,0.01079039]
[1764904177699,0.02323,92677.0,92675.0,0.01079039]
[1764904177869,0.04506873,92676.0,92675.0,0.01079039]
[1764904178270,0.06829873,92676.0,92675.0,0.01079039]
[1764904179315,0.06829873,92676.0,92675.0,0.01179039]
[1764904179516,0.06829873,92676.0,92675.0,0.001]
[1764904179943,0.04506873,92676.0,92673.0,0.22660147]
[1764904180166,0.04661,92676.0,92673.0,0.22660147]
[1764904180969,0.0308,92676.0,92673.0,0.22660147]
[1764904181995,0.0288,92676.0,92673.0,0.22660147]
[1764904182324,0.0308,92676.0,92673.0,0.22660147]
[1764904182525,0.019,92676.0,92673.0,0.22660147]
[1764904185338,0.0004014,92674.0,92673.0,0.22660147]
[1764904186292,0.0004014,92674.0,92673.0,0.26606147]
[1764904186587,0.0014014,92674.0,92673.0,0.22660147]
[1764904186793,0.0014014,92674.0,92673.0,0.28766147]
[1764904186933,0.0014014,92674.0,92673.0,0.26481147]
[1764904187136,0.0014014,92674.0,92673.0,0.22660147]
[1764904187356,0.0246314,92674.0,92673.0,0.22660147]
[1764904188449,0.0014014,92674.0,92673.0,0.22660147]
[1764904190046,0.0413214,92674.0,92673.0,0.22660147]
[1764904190615,0.0014014,92674.0,92673.0,0.22660147]
[1764904191156,0.0413214,92674.0,92673.0,0.22660147]
[1764904191358,0.0014014,92674.0,92673.0,0.28715147]
[1764904192262,0.0014014,92674.0,92673.0,0.29147151]
[1764904192923,0.0004014,92674.0,92673.0,0.29347151]
[1764904193116,0.0004014,92674.0,92673.0,0.30747151]
[1764904202204,0.0004014,92674.0,92673.0,0.28587151]
[1764904202424,0.0004014,92674.0,92673.0,0.30747151]
[1764904204058,0.0004014,92674.0,92673.0,0.3699945]
[1764904206754,0.0002,92680.0,92679.0,0.21579861]
[1764904207023,0.0002,92700.0,92689.0,0.23737533]
[1764904207200,0.0002,92700.0,92699.0,0.23735205]
[1764904207340,0.0005989,92700.0,92699.0,0.25316205]
[1764904207552,0.0005989,92700.0,92699.0,0.27577205]
[1764904208885,0.0015989,92700.0,92699.0,0.27577205]
[1764904210116,0.0015989,92700.0,92699.0,0.33829504]
[1764904211240,0.0005989,92700.0,92699.0,0.34129504]
[1764904211447,0.0005989,92700.0,92699.0,0.34829504]
[1764904212490,0.00134409,92700.0,92699.0,0.34829504]
[1764904215241,0.00134409,92700.0,92699.0,0.35261362]
[1764904215946,0.00134409,92700.0,92699.0,0.29009063]
[1764904216649,0.00134409,92700.0,92699.0,0.28709063]
[1764904217061,0.00134409,92700.0,92699.0,0.28809063]
[1764904217429,0.00134409,92700.0,92699.0,0.28109063]
[1764904229969,0.00134409,92700.0,92699.0,0.34361362]
[1764904235330,0.00134409,92700.0,92699.0,0.25949063]
[1764904237665,0.00134409,92700.0,92699.0,0.22107063]
[1764904239675,0.00134409,92700.0,92699.0,0.21675205]
[1764904239894,0.03994409,92700.0,92699.0,0.001]
[1764904240562,0.01078806,92695.0,92690.0,0.00099999]
[1764904240767,0.02598806,92695.0,92690.0,0.00099999]
[1764904240983,0.04938806,92695.0,92692.0,0.01078841]
[1764904241191,0.0386,92695.0,92692.0,0.01078841]
[1764904241395,0.0386,92695.0,92693.0,0.21576602]
[1764904241672,0.0386,92695.0,92689.0,0.23689355]
[1764904241673,0.0259883,92693.0,92686.0,0.01078911]
[1764904241896,0.01623333,92687.0,92685.0,0.22657321]
[1764904242328,0.05173333,92687.0,92685.0,0.22657321]
[1764904242522,0.02833333,92687.0,92685.0,0.22657321]
[1764904243157,0.02833333,92687.0,92685.0,0.01078923]
[1764904243295,0.01078923,92685.0,92680.0,0.00099999]
[1764904243483,0.01078923,92685.0,92676.0,0.01079028]
[1764904243484,0.0273,92681.0,92676.0,0.01079028]
[1764904243688,0.0152,92677.0,92676.0,0.01079028]
[1764904244095,0.0386,92677.0,92676.0,0.01079028]
[1764904246046,0.0416,92677.0,92676.0,0.01079028]
[1764904247980,0.0416,92677.0,92674.0,0.01079051]
[1764904248155,0.02673,92675.0,92674.0,0.01079051]
[1764904249401,0.01031,92675.0,92674.0,0.01079051]
[1764904249566,0.05,92675.0,92674.0,0.01079051]
[1764904250162,0.02673,92675.0,92674.0,0.01079051]
[1764904252348,0.05,92675.0,92674.0,0.01079051]
[1764904252559,0.05,92675.0,92670.0,0.00099999]
[1764904252560,0.01079062,92673.0,92670.0,0.00099999]
[1764904252731,0.01079062,92673.0,92665.0,0.01079156]
[1764904252732,0.01623333,92671.0,92668.0,0.21582376]
[1764904252938,0.01623333,92671.0,92669.0,0.01079109]
[1764904252939,0.03248333,92671.0,92669.0,0.01079109]
[1764904253134,0.05575333,92671.0,92669.0,0.01079109]
[1764904253335,0.05168,92670.0,92669.0,0.01079109]
[1764904253948,0.05207865,92670.0,92669.0,0.01079109]
[1764904254106,0.05207865,92670.0,92669.0,0.01279109]
[1764904255179,0.05207865,92670.0,92669.0,0.01079109]
[1764904255581,0.05207865,92670.0,92669.0,0.01279109]
[1764904255779,0.05207865,92670.0,92669.0,0.01079109]
[1764904256213,0.05207865,92670.0,92669.0,0.01179109]
[1764904258992,0.05207865,92670.0,92669.0,0.001]
[1764904259205,2.05207865,92670.0,92669.0,0.001]
[1764904259413,1.96407765,92670.0,92669.0,0.001]
[1764904259613,1.19749565,92670.0,92669.0,0.001]
[1764904260022,1.22076565,92670.0,92669.0,0.001]
[1764904260243,1.23718565,92670.0,92669.0,0.001]
[1764904263566,1.25863688,92670.0,92669.0,0.001]
[1764904264379,1.23718565,92670.0,92669.0,0.001]
[1764904264699,1.77600522,92670.0,92669.0,0.001]
[1764904265485,2.21584053,92661.0,92660.0,0.00099999]
[1764904265690,2.21584053,92661.0,92649.0,0.21586627]
[1764904265691,2.21584053,92661.0,92641.0,0.01079435]
[1764904265692,0.01079365,92647.0,92641.0,0.01079435]
[1764904265988,0.04464333,92642.0,92641.0,0.01079435]
[1764904266214,0.06168333,92642.0,92641.0,0.01079435]
[1764904266885,0.06168333,92642.0,92641.0,0.01379435]
[1764904267212,0.06180288,92642.0,92640.0,0.01179446]
[1764904267581,0.0399,92641.0,92640.0,0.01179446]
[1764904267777,0.0399,92641.0,92633.0,0.01079528]
[1764904267778,0.01079458,92639.0,92633.0,0.01079528]
[1764904268019,0.01079458,92639.0,92623.0,0.21592708]
[1764904268020,0.01079528,92633.0,92629.0,0.01079575]
[1764904268196,0.01511,92632.0,92629.0,0.01079575]
[1764904268403,0.01704,92631.0,92629.0,0.01079575]
[1764904268596,0.01704,92631.0,92628.0,0.01079587]
[1764904268802,0.01704,92631.0,92626.0,0.0107961]
[1764904269035,0.01704,92631.0,92624.0,0.00188788]
[1764904269037,0.21592209,92626.0,92624.0,0.00188788]
[1764904269204,0.0399,92625.0,92624.0,0.00188788]
[1764904270393,0.0399,92625.0,92624.0,0.00388788]
[1764904270784,0.3629,92625.0,92624.0,0.00388788]
[1764904270992,2.47260506,92625.0,92624.0,0.00388788]
[1764904271537,2.3629,92625.0,92624.0,0.00188788]
[1764904271754,2.41773131,92625.0,92624.0,0.00188788]
[1764904271991,2.42853079,92625.0,92624.0,0.00188788]
[1764904272368,2.43586155,92625.0,92624.0,0.00188788]
[1764904272595,2.46146155,92625.0,92624.0,0.00188788]
[1764904272765,2.56816661,92625.0,92624.0,0.00188788]
[1764904272969,2.53923585,92625.0,92624.0,0.00188788]
[1764904273168,2.54623585,92625.0,92624.0,0.00188788]
[1764904273770,2.54523585,92625.0,92624.0,0.00188788]
[1764904274133,2.54723585,92625.0,92624.0,0.00188788]
[1764904274343,2.43753079,92625.0,92624.0,0.00188788]
[1764904274551,2.41593079,92625.0,92624.0,0.00188788]
[1764904274954,2.3927582,92625.0,92624.0,0.00188788]
[1764904275073,2.4158647,92625.0,92624.0,0.00188788]
[1764904275478,2.41582949,92625.0,92624.0,0.00188788]
[1764904275732,2.52553455,92625.0,92624.0,0.00188788]
[1764904276039,2.54257455,92625.0,92624.0,0.00188788]
[1764904276391,2.56417455,92625.0,92624.0,0.00188788]
[1764904278259,2.33374349,92625.0,92624.0,0.00188788]
[1764904279115,2.32674349,92625.0,92624.0,0.00188788]
[1764904279343,2.33374349,92625.0,92624.0,0.00188788]
[1764904279560,2.32674349,92625.0,92624.0,0.00188788]
[1764904280001,2.33174349,92625.0,92624.0,0.00188788]
[1764904280242,2.44344855,92625.0,92624.0,0.00188788]
[1764904280636,2.44144855,92625.0,92624.0,0.00188788]
[1764904281055,2.44344855,92625.0,92624.0,0.00188788]
[1764904281260,2.68914855,92625.0,92624.0,0.00188788]
[1764904281710,1.62147949,92625.0,92624.0,0.00188788]
[1764904281918,1.60443949,92625.0,92624.0,0.00188788]
[1764904282120,1.26534948,92625.0,92624.0,0.00188788]
[1764904282346,1.57130948,92625.0,92624.0,0.00188788]
[1764904282558,1.58834948,92625.0,92624.0,0.00188788]
[1764904282758,1.58134948,92625.0,92624.0,0.00188788]
[1764904282969,1.58534948,92625.0,92624.0,0.00188788]
[1764904283120,1.57655,92625.0,92624.0,0.00188788]
[1764904283332,1.57055,92625.0,92624.0,0.00188788]
[1764904283658,1.57255,92625.0,92624.0,0.00188788]
[1764904284003,1.57355,92625.0,92624.0,0.00188788]
[1764904284511,1.62755995,92625.0,92624.0,0.00188788]
[1764904285015,1.57355,92625.0,92624.0,0.00188788]
[1764904285343,1.270687,92625.0,92624.0,0.00188788]
[1764904285550,1.221926,92625.0,92624.0,0.00188788]
[1764904285993,1.110629,92625.0,92624.0,0.00188788]
[1764904287068,1.056259,92625.0,92624.0,0.00188788]
[1764904287285,1.033126,92625.0,92624.0,0.00188788]
[1764904288034,0.959492,92625.0,92624.0,0.00188788]
[1764904292229,0.96953865,92625.0,92624.0,0.00188788]
[1764904294397,0.99271901,92625.0,92624.0,0.00188788]
[1764904310457,1.02160214,92625.0,92624.0,0.00188788]
[1764904310814,0.99271901,92625.0,92624.0,0.00188788]
[1764904311416,1.02160214,92625.0,92624.0,0.00188788]
[1764904312263,0.60692701,92625.0,92624.0,0.00188788]
[1764904312591,0.43172001,92625.0,92624.0,0.00188788]
[1764904312980,0.43172001,92625.0,92620.0,0.11154388]
[1764904313150,0.22660765,92624.0,92622.0,0.01079657]
[1764904313498,0.20564565,92623.0,92622.0,0.01079657]
[1764904313696,0.18158365,92623.0,92622.0,0.01079657]
[1764904314844,0.18158365,92623.0,92622.0,0.22672799]
[1764904315578,0.18358365,92623.0,92622.0,0.22672799]
[1764904316598,0.18458365,92623.0,92622.0,0.22672799]
[1764904317093,0.17770665,92623.0,92622.0,0.22672799]
[1764904317293,0.16766,92623.0,92622.0,0.22672799]
[1764904317594,0.003,92623.0,92622.0,0.22672799]
[1764904317943,0.02004,92623.0,92622.0,0.28411799]
[1764904318117,0.02004,92623.0,92622.0,0.26345799]
[1764904320456,0.003,92623.0,92622.0,0.26345799]
[1764904320696,0.003,92623.0,92622.0,0.28411799]
[1764904321423,0.002,92623.0,92622.0,0.28411799]
[1764904321843,0.01202,92639.0,92638.0,0.21589412]
[1764904323991,0.02794,92639.0,92638.0,0.21589412]
[1764904324382,0.02563009,92639.0,92638.0,0.21589412]
[1764904328571,0.00971009,92639.0,92638.0,0.21589412]
[1764904330253,0.00971009,92639.0,92638.0,0.21593412]
[1764904334272,1.281919,92641.0,92639.0,0.01079458]
[1764904334492,1.254927,92641.0,92639.0,0.01079458]
[1764904335847,1.228135,92641.0,92639.0,0.01079458]
[1764904336814,0.01079435,92641.0,92638.0,0.0108347]
[1764904337216,0.01091379,92642.0,92639.0,0.01079458]
[1764904337433,1.505646,92641.0,92639.0,0.01079458]
[1764904337813,1.477724,92641.0,92640.0,0.21588946]
[1764904338223,1.477724,92641.0,92638.0,0.22672815]
[1764904338455,1.48851835,92641.0,92638.0,4e-05]
[1764904338664,0.01079435,92641.0,92638.0,4e-05]
[1764904339511,0.01079435,92641.0,92638.0,0.0108347]
[1764904339940,0.22679885,92642.0,92638.0,0.0108347]
[1764904340207,0.02902,92639.0,92638.0,4e-05]
[1764904341960,0.00011955,92642.0,92640.0,0.21588842]
[1764904342190,0.283342,92641.0,92640.0,0.21588842]
[1764904343323,0.283342,92641.0,92640.0,0.21588946]
[1764904343565,0.283342,92641.0,92639.0,0.01079458]
[1764904343732,0.283342,92641.0,92640.0,0.21588946]
[1764904343934,0.283342,92641.0,92639.0,0.01079458]
[1764904344558,0.01665,92640.0,92638.0,4e-05]
[1764904344997,0.01237,92639.0,92638.0,4e-05]
[1764904345302,0.42926896,92639.0,92638.0,4e-05]
[1764904345468,1.69067496,92639.0,92638.0,4e-05]
[1764904347319,1.70078515,92639.0,92638.0,4e-05]
[1764904348450,1.7240805,92639.0,92638.0,4e-05]
[1764904348938,1.72408053,92639.0,92638.0,4e-05]
[1764904349294,1.72408297,92639.0,92638.0,4e-05]
[1764904351306,1.72608297,92639.0,92638.0,4e-05]
[1764904351853,1.72508297,92639.0,92638.0,4e-05]
[1764904352254,1.72608297,92639.0,92638.0,4e-05]
[1764904352430,1.70278515,92639.0,92638.0,4e-05]
[1764904352833,1.72607698,92639.0,92638.0,4e-05]
[1764904356917,1.64882802,92639.0,92638.0,4e-05]
[1764904357255,1.62553619,92639.0,92638.0,4e-05]
[1764904357864,1.89452196,92639.0,92638.0,4e-05]
[1764904358704,1.89352196,92639.0,92638.0,4e-05]
[1764904359368,1.89252196,92639.0,92638.0,4e-05]
[1764904359573,2.00422702,92639.0,92638.0,4e-05]
[1764904360001,2.00522702,92639.0,92638.0,4e-05]
[1764904362065,2.02682702,92639.0,92638.0,4e-05]
[1764904362977,2.11523314,92639.0,92638.0,4e-05]
[1764904363138,2.08635001,92639.0,92638.0,4e-05]
[1764904363335,2.09335001,92639.0,92638.0,4e-05]
[1764904363772,2.09135001,92639.0,92638.0,4e-05]
[1764904364160,2.08835001,92639.0,92638.0,4e-05]
[1764904364361,2.09535001,92639.0,92638.0,4e-05]
[1764904364580,2.09535001,92639.0,92616.0,0.00022958]
[1764904364581,2.21594074,92618.0,92616.0,0.00022958]
[1764904364759,2.16815839,92617.0,92616.0,0.00022958]
[1764904364943,2.51560839,92617.0,92616.0,0.00022958]
[1764904366105,2.51660839,92617.0,92616.0,0.00022958]
[1764904366677,2.76230839,92617.0,92616.0,0.00022958]
[1764904366870,2.81725389,92617.0,92616.0,0.00022958]
[1764904367366,2.84729905,92617.0,92616.0,0.00022958]
[1764904367558,2.81825389,92617.0,92616.0,0.00022958]
[1764904367965,2.93000429,92617.0,92616.0,0.00022958]
[1764904368210,2.90095772,92617.0,92616.0,0.00022958]
[1764904368593,2.89995772,92617.0,92616.0,0.00022958]